bitfinex/quotes_ETHUSD_20230902
["timestamp","ask_amount","ask_price","bid_price","bid_amount"]
[1693668282939,1.544,1643.5,1643.1,0.4678199]
[1693668283084,1.544,1643.2,1643.1,0.4678199]
[1693668283443,15.23678,1643.2,1643.1,0.4678199]
[1693668284234,18.31863404,1643.2,1642.9,0.63344141]
[1693668284444,4.91371744,1643.1,1642.8,0.63344141]
[1693668284608,13.69446,1643.0,1642.8,0.63344141]
[1693668284933,13.69446,1643.0,1642.8,1.05801657]
[1693668284934,16.77631404,1643.0,1642.8,1.05801657]
[1693668285692,4.62585404,1642.9,1642.8,1.05801657]
[1693668285900,23.15315544,1642.9,1642.7,0.4678199]
[1693668287024,23.15315544,1642.9,1642.8,0.00934813]
[1693668288243,21.32112404,1642.9,1642.8,0.00934813]
[1693668288444,9.13018,1642.9,1642.8,0.00934813]
[1693668289546,13.69527,1642.9,1642.8,0.00934813]
[1693668290620,13.69527,1642.9,1642.8,0.66543659]
[1693668292849,13.69527,1642.9,1642.8,1.72345893]
[1693668297876,13.06044752,1642.9,1642.8,2.35690034]
[1693668298032,13.06044752,1642.9,1642.8,1.72345893]
[1693668298776,13.06044752,1642.9,1642.8,2.35690034]
[1693668301345,3.43657595,1642.9,1642.8,4.31799212]
[1693668301548,3.43657595,1642.9,1642.8,3.05110929]
[1693668303585,4.56494,1643.0,1642.8,3.05110929]
[1693668303586,4.56346,1643.5,1643.4,0.4678199]
[1693668303888,4.56343,1643.5,1643.4,0.4678199]
[1693668304049,4.56343,1643.5,1643.4,1.53484277]
[1693668304581,9.12647,1643.6,1643.4,2.19516741]
[1693668304788,9.12647,1643.6,1643.4,1.13744082]
[1693668305751,4.56315,1643.6,1643.5,1.0576805]
[1693668305947,4.56315,1643.6,1643.5,1.05768012]
[1693668306263,4.56315,1643.6,1643.5,1.06696777]
[1693668307146,4.56315,1643.6,1643.5,0.00928765]
[1693668307372,4.56315,1643.6,1643.5,1.06698072]
[1693668310019,9.12647,1643.6,1643.5,1.06698072]
[1693668310208,4.56315,1643.6,1643.5,1.06698072]
[1693668310407,9.12608,1643.7,1643.5,1.06698072]
[1693668310408,4.563,1643.7,1643.6,0.4678199]
[1693668310738,4.563,1643.7,1643.6,1.10041846]
[1693668310908,4.563,1643.7,1643.6,2.15811153]
[1693668311078,4.563,1643.7,1643.6,2.47902024]
[1693668312913,4.563,1643.7,1643.6,3.42791808]
[1693668313614,4.563,1643.7,1643.6,2.79531952]
[1693668314123,9.12484,1643.9,1643.6,3.1116188]
[1693668314302,9.12484,1643.9,1643.8,0.4678199]
[1693668314509,4.56237,1643.9,1643.8,2.15714285]
[1693668315227,4.56237,1643.9,1643.8,2.16640459]
[1693668315811,4.56237,1643.9,1643.8,2.48221953]
[1693668316008,4.56237,1643.9,1643.8,3.11352952]
[1693668316733,4.31237,1643.9,1643.8,2.48221953]
[1693668317825,4.31237,1643.9,1643.8,3.74741665]
[1693668318003,4.31237,1643.9,1643.8,3.74670351]
[1693668318515,4.31237,1643.9,1643.8,2.79997183]
[1693668318821,4.31237,1643.9,1643.8,3.26923484]
[1693668319628,4.31237,1643.9,1643.8,3.92860745]
[1693668319786,6.06112792,1644.0,1643.9,2.25568946]
[1693668319990,6.06112792,1644.0,1643.9,5.21370677]
[1693668320185,3.24185881,1644.0,1643.9,4.75791034]
[1693668320384,4.56133,1644.3,1643.9,4.75791034]
[1693668320590,4.56133,1644.3,1644.2,1.72886048]
[1693668320827,4.56133,1644.3,1644.2,3.1018137]
[1693668321003,4.56133,1644.3,1644.2,3.11104092]
[1693668321505,3.43358918,1644.3,1644.2,3.11104092]
[1693668322124,4.56106,1644.4,1644.2,3.11104092]
[1693668322440,9.12217,1644.4,1644.3,3.26333098]
[1693668322806,9.12217,1644.4,1644.3,3.89435832]
[1693668323017,4.56106,1644.4,1644.3,3.89435832]
[1693668323616,4.56106,1644.4,1644.3,2.6339938]
[1693668324019,4.56106,1644.4,1644.3,1.05769307]
[1693668324839,4.56106,1644.4,1644.3,2.94925395]
[1693668325001,4.56106,1644.4,1644.3,2.95847254]
[1693668325801,4.56106,1644.4,1644.3,1.06691166]
[1693668326739,4.56106,1644.4,1644.3,3.28395661]
[1693668327332,4.56093,1644.4,1644.3,3.28395661]
[1693668329407,20.04291004,1644.4,1644.3,1.06691166]
[1693668329742,15.48198004,1644.4,1644.3,1.06691166]
[1693668332149,15.48198004,1644.4,1644.3,1.05769307]
[1693668332345,20.04291004,1644.4,1644.3,1.05769307]
[1693668332946,15.48198004,1644.4,1644.3,1.88585384]
[1693668333256,15.48198004,1644.4,1644.3,1.0688799]
[1693668333750,20.04291004,1644.4,1644.3,1.0688799]
[1693668333904,23.04291004,1644.4,1644.3,1.89724634]
[1693668334107,23.04291004,1644.4,1644.3,1.0688799]
[1693668334548,23.04291004,1644.4,1644.3,2.95493941]
[1693668334751,21.35112841,1644.4,1644.3,3.57216443]
[1693668334915,21.35112841,1644.4,1644.3,1.68610492]
[1693668335115,21.35112841,1644.4,1644.3,3.57216443]
[1693668335351,16.74771404,1644.4,1644.3,3.57216443]
[1693668335653,21.30864404,1644.4,1644.3,3.57216443]
[1693668337122,21.30864404,1644.4,1644.3,1.68610492]
[1693668337454,21.30864404,1644.4,1644.3,3.57216443]
[1693668337958,20.67422952,1644.4,1644.3,3.57216443]
[1693668339876,20.67422952,1644.4,1644.3,1.68610492]
[1693668339877,15.97122846,1644.4,1644.3,1.68610492]
[1693668340169,8.41029846,1644.4,1644.3,3.68941938]
[1693668340338,12.97122846,1644.4,1644.3,4.3563501]
[1693668340528,14.51522846,1644.4,1644.3,4.3563501]
[1693668341226,15.22679,1644.4,1644.3,4.3563501]
[1693668341428,14.0990506,1644.4,1644.3,4.3563501]
[1693668341868,9.5381206,1644.4,1644.3,4.3563501]
[1693668342368,14.0990506,1644.4,1644.3,4.3563501]
[1693668343351,9.5381206,1644.4,1644.3,2.15347746]
[1693668344344,14.0990506,1644.4,1644.3,2.15347746]
[1693668345059,14.0990506,1644.4,1644.3,4.75562076]
[1693668345263,14.0990506,1644.4,1644.3,2.15347746]
[1693668346075,14.0990506,1644.4,1644.3,4.75562076]
[1693668346577,9.5381206,1644.4,1644.3,4.75562076]
[1693668348193,14.0990506,1644.4,1644.3,4.75562076]
[1693668348397,15.22679,1644.4,1644.3,4.75562076]
[1693668349723,2.23946948,1645.0,1644.5,0.4678199]
[1693668349857,4.54415796,1645.0,1644.9,0.4678199]
[1693668350098,13.67781,1645.0,1644.9,1.52506561]
[1693668350434,13.67781,1645.0,1644.9,3.64790221]
[1693668350435,9.11854,1645.0,1644.9,3.64790221]
[1693668350588,9.11854,1645.0,1644.9,1.63007114]
[1693668350589,19.82583904,1645.0,1644.9,1.63007114]
[1693668350902,12.184715,1645.0,1644.9,3.64796575]
[1693668351078,9.61254,1645.0,1644.9,4.70481166]
[1693668351282,9.61254,1645.0,1644.9,2.09789104]
[1693668351787,14.17181,1645.0,1644.9,3.64831617]
[1693668351993,14.17181,1645.0,1644.9,4.70516208]
[1693668352307,14.17181,1645.0,1644.9,4.23734218]
[1693668352489,17.17181,1645.0,1644.9,4.23734218]
[1693668353710,17.17181,1645.0,1644.9,1.63007114]
[1693668354073,22.42675404,1645.0,1644.9,1.64046741]
[1693668355268,23.47675404,1645.0,1644.9,1.64046741]
[1693668356608,21.30366404,1645.0,1644.9,1.64046741]
[1693668356772,21.30366404,1645.0,1644.9,2.79010537]
[1693668357192,21.30366404,1645.0,1644.9,3.84695128]
[1693668358599,21.30366404,1645.0,1644.9,1.64046741]
[1693668359004,21.30366404,1645.0,1644.9,2.7900789]
[1693668359721,21.30366404,1645.0,1644.9,1.64046741]
[1693668359923,19.04893854,1645.0,1644.9,2.7901047]
[1693668360108,21.30366404,1645.0,1644.9,1.64046741]
[1693668361491,20.1762714,1645.0,1644.9,1.64046741]
[1693668362523,20.1762714,1645.0,1644.9,3.53208611]
[1693668364722,18.4851654,1645.0,1644.9,1.64046741]
[1693668364930,19.75966404,1645.0,1644.9,1.64046741]
[1693668365424,19.75966404,1645.0,1644.9,3.53208611]
[1693668365621,22.24068271,1645.0,1644.9,1.64046741]
[1693668365809,25.32868271,1645.0,1644.9,3.21756695]
[1693668366010,13.67781,1645.0,1644.9,3.21756695]
[1693668366210,0.59948197,1645.3,1645.1,9.5857999]
[1693668366425,0.59948197,1645.3,1645.2,3.26178886]
[1693668366624,0.59948197,1645.3,1645.2,5.61555591]
[1693668366790,0.1064107,1645.3,1645.2,12.2875488]
[1693668366991,0.1064107,1645.3,1645.2,14.33178752]
[1693668367192,0.41858507,1646.1,1645.6,3.54967394]
[1693668367430,0.41858507,1646.1,1646.0,3.54967394]
[1693668367431,0.101,1646.1,1646.0,3.54967394]
[1693668367629,0.101,1646.1,1646.0,5.0243199]
[1693668367801,4.65722,1646.1,1646.0,1.52466581]
[1693668367990,13.76966,1646.1,1646.0,3.25685557]
[1693668368190,4.65722,1646.1,1646.0,3.25685557]
[1693668368403,0.051,1646.1,1646.0,1.05684591]
[1693668368626,9.16344,1646.1,1646.0,3.25687507]
[1693668368802,9.16344,1646.1,1646.0,1.05684591]
[1693668369136,9.16344,1646.1,1646.0,1.88604143]
[1693668369426,14.636004,1646.1,1646.0,1.05684591]
[1693668369603,14.636004,1646.1,1645.9,3.25687507]
[1693668369805,14.636004,1646.1,1646.0,1.05684591]
[1693668370003,14.585004,1646.1,1645.9,3.25687507]
[1693668370326,14.585004,1646.1,1646.0,2.93870198]
[1693668370626,17.585004,1646.1,1646.0,1.88185607]
[1693668371205,17.585004,1646.1,1646.0,1.57657699]
[1693668371430,19.129004,1646.1,1646.0,2.6334229]
[1693668371796,17.585004,1646.1,1646.0,2.6334229]
[1693668372403,16.66866,1646.1,1646.0,2.82947921]
[1693668372598,16.66866,1646.1,1646.0,3.88632512]
[1693668373103,16.66866,1646.1,1646.0,2.31926755]
[1693668373516,19.75051404,1646.1,1646.0,2.31926755]
[1693668373715,19.75051404,1646.1,1646.0,3.25847715]
[1693668373923,21.94116544,1646.1,1646.0,3.25847715]
[1693668374242,12.11244,1646.1,1646.0,2.00557493]
[1693668374606,16.66866,1646.1,1646.0,2.00557493]
[1693668375700,16.66866,1646.1,1646.0,1.57426017]
[1693668375911,16.66866,1646.1,1646.0,2.63110608]
[1693668376433,16.66866,1646.1,1646.0,1.69189648]
[1693668377202,18.551126,1646.1,1646.0,1.69189648]
[1693668378004,17.91738769,1646.1,1646.0,1.69189648]
[1693668378707,20.99924173,1646.1,1646.0,1.69189648]
[1693668379142,11.47870169,1646.1,1646.0,1.69189648]
[1693668379345,16.03492169,1646.1,1646.0,1.69189648]
[1693668379505,16.03492169,1646.1,1646.0,2.3885406]
[1693668379841,16.66866,1646.1,1646.0,2.3885406]
[1693668380018,14.41536668,1646.1,1646.0,2.3885406]
[1693668380220,9.11244,1646.1,1646.0,2.3885406]
[1693668380419,9.11244,1646.1,1646.0,2.60367931]
[1693668380609,9.11169,1646.3,1646.0,8.68716194]
[1693668380808,4.55581,1646.3,1646.2,0.62435857]
[1693668381140,21.04488404,1646.3,1646.1,2.62690438]
[1693668381445,13.66722,1646.3,1646.2,1.05684591]
[1693668381743,16.74907404,1646.3,1646.2,1.05684591]
[1693668381918,18.90507404,1646.3,1646.1,0.00916205]
[1693668382116,7.97236144,1646.2,1646.1,0.00916205]
[1693668382446,21.64018144,1646.2,1646.1,0.00916205]
[1693668385352,21.64018144,1646.2,1646.1,1.06533657]
[1693668390024,19.38700463,1646.2,1646.1,1.06533657]
[1693668390335,17.49649723,1646.2,1646.1,1.06533657]
[1693668390754,17.49649723,1646.2,1646.1,1.68969514]
[1693668390755,16.66782,1646.2,1646.1,1.68969514]
[1693668391324,4.55594,1646.2,1646.1,3.71841146]
[1693668391528,4.55594,1646.2,1646.1,3.71912335]
[1693668391725,4.55594,1646.2,1646.1,4.31770523]
[1693668391930,4.55594,1646.2,1646.1,4.31771274]
[1693668392550,6.09494,1646.2,1646.1,3.71943024]
[1693668392750,10.65088,1646.2,1646.1,2.00287278]
[1693668392953,10.65088,1646.2,1646.1,2.47069268]
[1693668393867,10.65088,1646.2,1646.1,2.78323181]
[1693668394270,10.65088,1646.2,1646.1,2.31541191]
[1693668394427,22.80933104,1646.2,1646.1,1.69090092]
[1693668394768,21.11945584,1646.2,1646.1,2.39444622]
[1693668394973,22.80933104,1646.2,1646.1,2.39444622]
[1693668395684,4.55594,1646.2,1646.1,3.17497034]
[1693668395828,4.55594,1646.2,1646.1,3.7998533]
[1693668396152,16.74967404,1646.2,1646.1,3.17578691]
[1693668396462,9.11188,1646.2,1646.1,5.05185255]
[1693668396829,9.11188,1646.2,1646.1,3.48863358]
[1693668397337,4.55581,1646.3,1646.1,4.30503856]
[1693668397539,6.09481,1646.3,1646.2,2.30797471]
[1693668397738,9.11164,1646.3,1646.2,2.30797471]
[1693668397928,9.11164,1646.3,1646.2,3.24697638]
[1693668398123,10.65064,1646.3,1646.2,2.0047288]
[1693668398329,19.3054039,1646.3,1646.2,2.0047288]
[1693668399668,19.3054039,1646.3,1646.2,1.06572713]
[1693668399669,27.3412339,1646.3,1646.2,1.06572713]
[1693668399962,27.76993614,1646.3,1646.2,1.69199]
[1693668400165,26.8612339,1646.3,1646.2,1.6823562]
[1693668400343,27.3412339,1646.3,1646.2,1.6823562]
[1693668400751,27.3412339,1646.3,1646.2,0.62626287]
[1693668401584,26.21463808,1646.3,1646.2,0.62626287]
[1693668402155,26.21463808,1646.3,1646.2,1.6823562]
[1693668402368,26.21463808,1646.3,1646.2,0.62626287]
[1693668402760,26.21463808,1646.3,1646.2,1.6823562]
[1693668402948,26.21463808,1646.3,1646.2,0.62626287]
[1693668403671,26.21463808,1646.3,1646.2,1.56526454]
[1693668404471,26.39697939,1646.3,1646.2,1.56526454]
[1693668404687,26.39697939,1646.3,1646.2,0.93900167]
[1693668405051,26.39697939,1646.3,1646.2,1.65539548]
[1693668405454,26.39697939,1646.3,1646.2,2.71148881]
[1693668406167,33.48498949,1646.3,1646.0,1.56321897]
[1693668406365,1.539,1646.0,1645.9,1.56321897]
[1693668406666,24.15140046,1646.0,1645.9,1.56321897]
[1693668406891,27.15140046,1646.0,1645.9,2.20296775]
[1693668407103,30.78881152,1646.0,1645.9,0.64800938]
[1693668407449,30.78881152,1646.0,1645.9,0.0082606]
[1693668407870,30.78881152,1646.0,1645.9,1.57147957]
[1693668408148,30.78881152,1646.0,1645.9,2.20401078]
[1693668409205,30.78881152,1646.0,1645.9,2.21227512]
[1693668409846,29.09870275,1646.0,1645.9,2.21227512]
[1693668410243,29.09870275,1646.0,1645.9,2.52429095]
[1693668411297,29.09870275,1646.0,1645.9,0.64905615]
[1693668411465,29.09870275,1646.0,1645.9,2.54138637]
[1693668411672,29.09870275,1646.0,1645.9,0.64905615]
[1693668412320,29.09870275,1646.0,1645.9,2.85668009]
[1693668413101,18.88579169,1646.0,1645.9,2.85668009]
[1693668413393,18.88579169,1646.0,1645.9,3.25681193]
[1693668413595,4.5565,1646.0,1645.9,1.11687605]
[1693668413792,4.55635,1646.1,1645.9,1.11687605]
[1693668413995,9.11274,1646.1,1646.0,2.60908592]
[1693668414167,9.11274,1646.1,1646.0,2.98168212]
[1693668414371,10.65174,1646.1,1646.0,2.98168212]
[1693668414568,10.65174,1646.1,1646.0,3.6249122]
[1693668415259,10.65174,1646.1,1646.0,3.63315946]
[1693668416399,15.20813,1646.1,1646.0,0.65147734]
[1693668416780,15.20813,1646.1,1646.0,2.8604782]
[1693668417398,15.82513,1646.1,1646.0,2.8604782]
[1693668417768,15.82513,1646.1,1646.0,0.65147734]
[1693668418071,15.1914314,1646.1,1646.0,0.65147734]
[1693668418272,15.1914314,1646.1,1646.0,3.19330801]
[1693668418663,10.6350414,1646.1,1646.0,0.98430715]
[1693668418868,8.4790414,1646.1,1646.0,0.98430715]
[1693668419402,8.4790414,1646.1,1646.0,2.87745067]
[1693668419803,8.4790414,1646.1,1646.0,0.98430715]
[1693668420401,13.0354314,1646.1,1646.0,0.98430715]
[1693668420602,15.1914314,1646.1,1646.0,2.22919039]
[1693668421474,15.82517,1646.1,1646.0,2.22919039]
[1693668421914,15.82517,1646.1,1646.0,2.86031757]
[1693668422104,15.82517,1646.1,1646.0,1.59812315]
[1693668422798,15.58333126,1646.1,1646.0,1.59812315]
[1693668422995,11.02694126,1646.1,1646.0,2.40425681]
[1693668423236,4.55579,1646.3,1646.2,0.4678199]
[1693668423420,4.55579,1646.3,1646.2,1.09867071]
[1693668424185,9.11169,1646.3,1646.2,0.47604981]
[1693668424583,9.11169,1646.3,1646.2,1.12641876]
[1693668425205,13.66759,1646.3,1646.2,1.12641876]
[1693668425404,15.82359,1646.3,1646.2,0.65859886]
[1693668425939,15.82359,1646.3,1646.2,1.12641876]
[1693668426127,15.82359,1646.3,1646.2,0.65859886]
[1693668426791,15.82359,1646.3,1646.2,1.12641876]
[1693668427525,11.26769,1646.3,1646.2,1.12641876]
[1693668428350,9.11169,1646.3,1646.2,1.12641876]
[1693668429209,9.11169,1646.3,1646.2,0.65859886]
[1693668429847,9.11169,1646.3,1646.2,1.12641876]
[1693668430225,6.71126,1646.5,1646.2,1.12641876]
[1693668430514,9.11059,1646.5,1646.2,1.12641876]
[1693668430952,13.66595,1646.5,1646.2,1.12641876]
[1693668431316,20.99036085,1646.5,1646.2,1.12641876]
[1693668431531,9.11134,1646.3,1646.2,1.12641876]
[1693668432357,13.66701,1646.3,1646.2,1.12641876]
[1693668433147,15.82301,1646.3,1646.2,1.12641876]
[1693668435981,11.26734,1646.3,1646.2,1.12641876]
[1693668436263,9.11134,1646.3,1646.2,1.12641876]
[1693668436553,13.66701,1646.3,1646.2,1.12641876]
[1693668437446,15.82301,1646.3,1646.2,1.12641876]
[1693668437759,15.82301,1646.3,1646.2,0.65859886]
[1693668437960,18.82301,1646.3,1646.2,0.65859886]
[1693668440561,24.47098704,1646.3,1646.2,0.65859886]
[1693668441662,24.47098704,1646.3,1646.2,0.00822991]
[1693668442178,24.47098704,1646.3,1646.0,0.4678199]
[1693668442327,12.11134,1646.3,1646.0,0.4678199]
[1693668442533,1.54,1646.2,1646.0,0.4678199]
[1693668442732,10.65215,1646.2,1646.0,0.4678199]
[1693668443052,10.65215,1646.2,1646.1,0.00793324]
[1693668444267,15.20834,1646.2,1646.1,0.00793324]
[1693668445466,20.484741,1646.2,1646.1,0.00793324]
[1693668446664,23.56659504,1646.2,1646.1,0.00793324]
[1693668448157,21.29019404,1646.2,1646.1,0.00793324]
[1693668449501,10.65215,1646.2,1646.1,0.00793324]
[1693668451272,13.73400404,1646.2,1646.1,0.00793324]
[1693668451472,15.20834,1646.2,1646.1,0.00793324]
[1693668451813,22.76453,1646.2,1646.1,0.00793324]
[1693668452175,25.84638404,1646.2,1646.1,0.00793324]
[1693668454720,25.84638404,1646.2,1646.1,0.43080382]
[1693668456020,1.54,1646.0,1645.4,1.09804326]
[1693668456324,34.11124089,1645.9,1645.4,0.4678199]
[1693668457090,3.0,1645.8,1645.4,0.4678199]
[1693668457288,17.23399404,1645.7,1645.4,0.4678199]
[1693668457514,3.08,1645.5,1645.4,0.4678199]
[1693668457725,12.19576,1645.5,1645.4,0.4678199]
[1693668457887,15.27761404,1645.5,1645.2,0.4678199]
[1693668458081,1.54,1645.3,1645.2,0.4678199]
[1693668458285,15.21529,1645.3,1645.2,0.4678199]
[1693668458788,15.21529,1645.3,1645.0,1.09804326]
[1693668458994,16.67613,1645.2,1645.1,1.05653189]
[1693668459200,18.21613,1645.2,1645.1,1.05653189]
[1693668460221,18.21613,1645.2,1645.1,1.06353382]
[1693668460422,17.58220224,1645.2,1645.1,1.06353382]
[1693668461322,17.58220224,1645.2,1645.1,1.69375718]
[1693668461499,17.58220224,1645.2,1645.1,1.06353382]
[1693668461703,27.4609865,1645.2,1645.1,0.00700193]
[1693668462127,27.4609865,1645.2,1644.8,2.0433783]
[1693668462427,3.56185404,1645.1,1644.9,0.63022336]
[1693668462625,17.0339954,1645.0,1644.9,0.63022336]
[1693668462837,19.4686952,1645.0,1644.9,1.68692621]
[1693668463321,19.4686952,1645.0,1644.9,1.69394551]
[1693668463527,19.4686952,1645.0,1644.9,2.00905719]
[1693668464327,19.4686952,1645.0,1644.9,2.32416887]
[1693668464491,19.4686952,1645.0,1644.9,3.26828507]
[1693668464910,21.87148972,1645.0,1644.9,2.32416887]
[1693668465298,20.18075946,1645.0,1644.9,2.32416887]
[1693668465534,19.64245856,1645.0,1644.9,2.32416887]
[1693668465848,26.49263866,1645.0,1644.9,2.21124015]
[1693668466143,26.49263866,1645.0,1644.9,1.69299638]
[1693668466433,26.49263866,1645.0,1644.9,0.95079343]
[1693668466600,26.49263866,1645.0,1644.9,2.00749628]
[1693668466601,26.81040182,1645.0,1644.9,2.00749628]
[1693668467132,31.36967182,1645.0,1644.9,2.00047698]
[1693668467341,31.36967182,1645.0,1644.9,2.31714957]
[1693668467541,34.36967182,1645.0,1644.9,3.89270797]
[1693668467750,31.9668773,1645.0,1644.9,2.31714957]
[1693668468434,31.9668773,1645.0,1644.9,3.88910763]
[1693668468610,31.9668773,1645.0,1644.9,2.83240478]
[1693668468812,31.9668773,1645.0,1644.9,2.31354923]
[1693668469127,35.61949003,1645.0,1644.9,2.31354923]
[1693668469329,35.61949003,1645.0,1644.9,2.63226125]
[1693668469506,35.61949003,1645.0,1644.9,1.5755584]
[1693668469915,35.61949003,1645.0,1644.9,2.63226125]
[1693668470211,27.4076073,1645.0,1644.9,1.05670285]
[1693668470418,31.9668773,1645.0,1644.9,2.62668941]
[1693668470633,31.9668773,1645.0,1644.9,1.56998656]
[1693668471705,31.9668773,1645.0,1644.9,2.82579547]
[1693668471905,31.9668773,1645.0,1644.9,2.82582068]
[1693668472145,35.61949003,1645.0,1644.9,2.82582068]
[1693668472399,35.61949003,1645.0,1644.9,2.82547818]
[1693668472554,31.9668773,1645.0,1644.9,1.56998656]
[1693668474744,32.44190012,1645.0,1644.9,2.82486167]
[1693668475246,32.87130874,1645.0,1644.8,2.19659795]
[1693668475447,2.5321801,1644.8,1644.7,2.19659888]
[1693668475655,30.57213414,1644.8,1644.6,2.82419856]
[1693668475951,25.3312801,1644.8,1644.6,1.5689992]
[1693668476189,19.3193,1644.7,1644.6,1.5689992]
[1693668476394,19.3193,1644.7,1644.6,2.82389364]
[1693668476546,25.95424805,1644.7,1644.6,1.25489444]
[1693668477373,23.13566683,1644.7,1644.6,1.25489444]
[1693668477577,20.880742,1644.7,1644.5,1.35489444]
[1693668477884,16.76296404,1644.6,1644.5,2.92389364]
[1693668478079,17.24296404,1644.6,1644.5,2.92389364]
[1693668478377,17.24296404,1644.6,1644.5,1.35489444]
[1693668478578,17.24296404,1644.6,1644.5,2.92389364]
[1693668479347,17.24296404,1644.6,1644.5,1.35489444]
[1693668479744,20.24296404,1644.6,1644.5,1.35489444]
[1693668480071,20.24296404,1644.6,1644.5,2.92389364]
[1693668480460,18.55182933,1644.6,1644.5,1.35489444]
[1693668481478,18.55182933,1644.6,1644.5,2.92389364]
[1693668481969,20.71082933,1644.6,1644.5,2.92389364]
[1693668482141,20.71082933,1644.6,1644.5,1.35489444]
[1693668482347,20.09482933,1644.6,1644.5,1.35489444]
[1693668482841,18.96738928,1644.6,1644.5,1.35489444]
[1693668483046,21.67544761,1644.6,1644.5,1.35489444]
[1693668483462,21.67544761,1644.6,1644.5,0.1]
[1693668484659,21.67544761,1644.6,1644.4,2.92389364]
[1693668484859,21.67544761,1644.6,1644.2,1.99067008]
[1693668484860,2.5321801,1644.4,1644.2,1.35489444]
[1693668485061,3.08185404,1644.3,1644.2,0.1]
[1693668485268,19.60735245,1644.3,1644.2,0.72734784]
[1693668485460,20.08735245,1644.3,1644.2,0.72734784]
[1693668485662,13.68363,1644.3,1644.2,0.1]
[1693668485882,15.22663,1644.3,1644.2,0.1]
[1693668486082,18.22663,1644.3,1644.2,0.72713042]
[1693668486388,21.30848404,1644.3,1644.2,0.72713042]
[1693668486564,21.78848404,1644.3,1644.2,0.72713042]
[1693668486759,25.13275245,1644.3,1644.2,0.72713042]
[1693668487413,25.75075245,1644.3,1644.2,0.72713042]
[1693668488293,25.75075245,1644.3,1644.2,0.1]
[1693668488806,2.5321801,1644.2,1643.9,1.25489444]
[1693668489005,29.37065404,1644.1,1643.8,3.29171354]
[1693668489159,2.161,1643.9,1643.8,3.29171354]
[1693668489358,2.161,1643.9,1643.8,2.0368191]
[1693668489359,18.75124026,1643.9,1643.8,2.0368191]
[1693668489582,21.75124026,1643.9,1643.8,3.29104449]
[1693668489766,14.28564,1643.9,1643.8,3.29104449]
[1693668489974,12.12464,1643.9,1643.8,0.99599136]
[1693668490167,12.12464,1643.9,1643.8,0.4678199]
[1693668490368,16.68696,1643.9,1643.8,0.4678199]
[1693668491948,4.56232,1643.9,1643.8,0.4678199]
[1693668492151,9.12464,1643.9,1643.8,0.4678199]
[1693668492350,9.12464,1643.9,1643.8,2.35848998]
[1693668494106,13.68696,1643.9,1643.8,0.4678199]
[1693668494550,13.68696,1643.9,1643.8,2.35848998]
[1693668494759,4.56232,1643.9,1643.8,2.35848998]
[1693668494964,9.12464,1643.9,1643.8,2.35848998]
[1693668495524,9.12464,1643.9,1643.8,3.88214239]
[1693668496427,9.12464,1643.9,1643.8,1.99147231]
[1693668496626,9.12464,1643.9,1643.8,3.8747592]
[1693668497234,9.12464,1643.9,1643.8,1.99147231]
[1693668498301,13.68696,1643.9,1643.8,3.8758632]
[1693668498468,16.68696,1643.9,1643.8,3.8758632]
[1693668499355,16.68696,1643.9,1643.8,1.99147231]
[1693668499555,16.68696,1643.9,1643.8,2.82068249]
[1693668499803,16.68696,1643.9,1643.8,3.87790773]
[1693668500305,16.68696,1643.9,1643.8,1.99147231]
[1693668500463,16.05258282,1643.9,1643.8,1.99147231]
[1693668500664,16.05258282,1643.9,1643.8,4.19725408]
[1693668501576,16.05258282,1643.9,1643.8,3.73082691]
[1693668502762,16.68696,1643.9,1643.8,3.73082691]
[1693668503558,16.68696,1643.9,1643.8,1.52504514]
[1693668505359,16.68696,1643.9,1643.8,3.73082691]
[1693668507372,18.23096,1643.9,1643.8,3.73082691]
[1693668508495,16.68696,1643.9,1643.8,3.73082691]
[1693668509103,12.12464,1643.9,1643.8,4.13062485]
[1693668509289,16.68696,1643.9,1643.8,4.55368734]
[1693668510287,9.12464,1643.9,1643.8,4.55368734]
[1693668510493,4.56232,1643.9,1643.8,4.55368734]
[1693668510686,9.12464,1643.9,1643.8,4.55368734]
[1693668511507,4.56232,1643.9,1643.8,4.55368734]
[1693668512196,4.56232,1643.9,1643.8,1.94810763]
[1693668512710,4.56232,1643.9,1643.8,0.89088239]
[1693668512910,4.56232,1643.9,1643.8,1.94810763]
[1693668514511,9.12464,1643.9,1643.8,1.94810763]
[1693668516432,9.12464,1643.9,1643.8,3.50221015]
[1693668516896,9.12464,1643.9,1643.8,4.55943539]
[1693668517400,4.56232,1643.9,1643.8,1.94810763]
[1693668517614,9.12464,1643.9,1643.8,1.94810763]
[1693668517815,9.12464,1643.9,1643.8,3.50299146]
[1693668518124,9.12464,1643.9,1643.8,4.5602167]
[1693668520431,9.12464,1643.9,1643.8,1.94810763]
[1693668521533,9.12464,1643.9,1643.8,3.1052477]
[1693668521824,18.31281404,1643.9,1643.8,3.42361444]
[1693668522323,9.12464,1643.9,1643.8,3.42361444]
[1693668522495,9.12464,1643.9,1643.8,1.52504514]
[1693668522896,7.99686438,1643.9,1643.8,1.52504514]
[1693668523514,7.99686438,1643.9,1643.8,2.36699976]
[1693668523716,7.99686438,1643.9,1643.8,3.424225]
[1693668524439,7.99686438,1643.9,1643.8,3.42464781]
[1693668525025,12.55918438,1643.9,1643.8,3.42464781]
[1693668525401,14.10318438,1643.9,1643.8,3.42464781]
[1693668525932,14.10318438,1643.9,1643.8,1.52504514]
[1693668527134,14.10318438,1643.9,1643.8,3.42464781]
[1693668527322,14.10318438,1643.9,1643.8,1.52504514]
[1693668528331,14.10318438,1643.9,1643.8,0.4678199]
[1693668528503,14.10318438,1643.9,1643.8,1.52504514]
[1693668529343,14.10318438,1643.9,1643.8,3.10916705]
[1693668529635,7.99686438,1643.9,1643.8,1.52504514]
[1693668530417,7.99686438,1643.9,1643.8,2.05253984]
[1693668530714,7.99686438,1643.9,1643.8,3.10976508]
[1693668530935,12.55918438,1643.9,1643.8,3.10976508]
[1693668531432,7.99686438,1643.9,1643.8,3.10976508]
[1693668532306,3.43454438,1643.9,1643.8,3.64126575]
[1693668532510,7.99686438,1643.9,1643.8,3.43074159]
[1693668532709,12.55918438,1643.9,1643.8,3.10976508]
[1693668533334,12.55918438,1643.9,1643.8,2.79273555]
[1693668534319,12.55918438,1643.9,1643.8,2.47584007]
[1693668535345,12.55918438,1643.9,1643.8,2.15890473]
[1693668535751,7.99686438,1643.9,1643.8,2.15890473]
[1693668536948,3.43454438,1643.9,1643.8,2.4798747]
[1693668537123,11.82490149,1644.1,1644.0,0.4678199]
[1693668537528,14.82490149,1644.1,1644.0,1.52504514]
[1693668543075,11.82490149,1644.1,1644.0,1.52504514]
[1693668544276,0.47819149,1644.1,1644.0,2.15871873]
[1693668544477,0.47819149,1644.1,1644.0,8.43873203]
[1693668544672,10.50526513,1644.3,1644.2,0.4678199]